fUST/lending_fUST_20250627
["ID","MTS","AMOUNT","RATE_DAILY","PERIOD"]
[368088549,1751021439468,-591.0,0.00019178,2]
[368088550,1751021439477,-591.0,0.00019178,2]
[368088551,1751021439487,-591.0,0.00019178,2]
[368088552,1751021439650,-591.0,0.00019178,2]
[368088553,1751021439660,-591.0,0.00019178,2]
[368088554,1751021439670,-591.0,0.00019178,2]
[368088555,1751021439679,-591.0,0.00019178,2]
[368088556,1751021439688,-591.0,0.00019178,2]
[368088557,1751021439697,-591.0,0.00019178,2]
[368088558,1751021439707,-591.0,0.00019178,2]
[368088559,1751021439716,-591.0,0.00019178,2]
[368088560,1751021439725,-591.0,0.00019178,2]
[368088561,1751021439734,-460.0,0.00019178,2]
[368088562,1751021439744,-460.0,0.00019178,2]
[368088563,1751021439754,-460.0,0.00019178,2]
[368088564,1751021439763,-460.0,0.00019178,2]
[368088565,1751021439773,-460.0,0.00019178,2]
[368088566,1751021439783,-460.0,0.00019178,2]
[368088567,1751021439793,-460.0,0.00019178,2]
[368088568,1751021439802,-460.0,0.00019178,2]
[368088569,1751021439812,-918.35,0.00019178,2]
[368088570,1751021439822,-476.70761035,0.00019178,2]
[368088571,1751021439833,-460.0,0.00019178,2]
[368088572,1751021439843,-463.61217091,0.00019178,2]
[368088573,1751021439853,-314.04,0.00019178,2]
[368088574,1751021439863,-464.22250138,0.00019178,2]
[368088575,1751021439872,-460.0,0.00019178,2]
[368088576,1751021439882,-460.0,0.00019178,2]
[368088577,1751021439892,-460.0,0.00019178,2]
[368088578,1751021439902,-460.0,0.00019178,2]
[368088579,1751021439912,-460.0,0.00019178,2]
[368088580,1751021439921,-460.0,0.00019178,2]
[368088581,1751021439931,-833.27,0.00019178,2]
[368088582,1751021439941,-460.0,0.00019178,2]
[368088583,1751021439951,-460.0,0.00019178,2]
[368088584,1751021439960,-460.0,0.00019178,2]
[368088585,1751021439970,-460.0,0.00019178,2]
[368088586,1751021439982,-460.0,0.00019178,2]
[368088587,1751021439992,-460.0,0.00019178,2]
[368088589,1751021440001,-460.0,0.00019178,2]
[368088590,1751021440011,-460.0,0.00019178,2]
[368088591,1751021440021,-460.0,0.00019178,2]
[368088592,1751021440031,-460.0,0.00019178,2]
[368088593,1751021440040,-556.41,0.00019178,2]
[368088594,1751021440050,-460.0,0.00019178,2]
[368088595,1751021440059,-460.0,0.00019178,2]
[368088596,1751021440069,-1801.55,0.00019178,2]
[368088597,1751021440078,-460.0,0.00019178,2]
[368088598,1751021440087,-460.0,0.00019178,2]
[368088599,1751021440096,-460.0,0.00019178,2]
[368088600,1751021440106,-2389.41,0.00019178,2]
[368088601,1751021440115,-460.0,0.00019178,2]
[368088602,1751021440125,-460.0,0.00019178,2]
[368088603,1751021440134,-573.14,0.00019178,2]
[368088604,1751021440143,-492.2,0.00019178,2]
[368088605,1751021440152,-460.0,0.00019178,2]
[368088606,1751021440161,-460.0,0.00019178,2]
[368088607,1751021440170,-2876.33,0.00019178,2]
[368088608,1751021440181,-460.0,0.00019178,2]
[368088609,1751021440190,-460.0,0.00019178,2]
[368088610,1751021440200,-1082.4,0.00019178,2]
[368088611,1751021440209,-727.51,0.00019178,2]
[368088612,1751021440219,-552.30136842,0.00019178,2]
[368088613,1751021440228,-460.0,0.00019178,2]
[368088614,1751021440238,-460.0,0.00019178,2]
[368088615,1751021440247,-899.43,0.00019178,2]
[368088616,1751021440261,-460.0,0.00019178,2]
[368088617,1751021440270,-460.0,0.00019178,2]
[368088618,1751021440279,-650.41,0.00019178,2]
[368088619,1751021440289,-2029.29,0.00019178,2]
[368088620,1751021440299,-1426.62,0.00019178,2]
[368088621,1751021440308,-659.85,0.00019178,2]
[368088622,1751021440318,-460.0,0.00019178,2]
[368088623,1751021440329,-460.0,0.00019178,2]
[368088624,1751021440338,-1329.43,0.00019178,2]
[368088625,1751021440347,-471.94992726,0.00019178,2]
[368088626,1751021440356,-346.40532358,0.00019178,2]
[368088627,1751021440365,-460.0,0.00019178,2]
[368088628,1751021440375,-460.0,0.00019178,2]
[368088629,1751021440384,-460.0,0.00019178,2]
[368088630,1751021440394,-460.0,0.00019178,2]
[368088631,1751021440403,-460.0,0.00019178,2]
[368088632,1751021440412,-863.05,0.00019178,2]
[368088633,1751021440422,-839.87,0.00019178,2]
[368088634,1751021440431,-1276.34,0.00019178,2]
[368088635,1751021440441,-460.0,0.00019178,2]
[368088636,1751021440451,-4767.51,0.00019178,2]
[368088637,1751021440460,-460.0,0.00019178,2]
[368088638,1751021440471,-460.0,0.00019178,2]
[368088639,1751021440481,-529.46,0.00019178,2]
[368088640,1751021440490,-460.0,0.00019178,2]
[368088641,1751021440500,-2556.07,0.00019178,2]
[368088642,1751021440510,-490.37,0.00019178,2]
[368088643,1751021440519,-6190.04,0.00019178,2]
[368088644,1751021440528,-460.0,0.00019178,2]
[368088645,1751021440537,-460.0,0.00019178,2]
[368088646,1751021440547,-695.22,0.00019178,2]
[368088647,1751021440556,-769.42,0.00019178,2]
[368088648,1751021440566,-460.0,0.00019178,2]
[368088649,1751021440575,-3632.55,0.00019178,2]
[368088650,1751021440585,-460.0,0.00019178,2]
[368088651,1751021440594,-1058.86,0.00019178,2]
[368088652,1751021440604,-1684.88,0.00019178,2]
[368088653,1751021440613,-492.5,0.00019178,2]
[368088654,1751021440623,-460.0,0.00019178,2]
[368088655,1751021440633,-460.0,0.00019178,2]
[368088656,1751021440643,-3463.49,0.00019178,2]
[368088657,1751021440652,-460.0,0.00019178,2]
[368088658,1751021440661,-460.0,0.00019178,2]
[368088659,1751021440671,-460.0,0.00019178,2]
[368088661,1751021440680,-460.0,0.00019178,2]
[368088662,1751021440689,-460.0,0.00019178,2]
[368088663,1751021440698,-7548.22,0.00019178,2]
[368088664,1751021440708,-763.56,0.00019178,2]
[368088665,1751021440718,-4404.44,0.00019178,2]
[368088666,1751021440727,-460.0,0.00019178,2]
[368088667,1751021440736,-1750.76,0.00019178,2]
[368088668,1751021440746,-460.0,0.00019178,2]
[368088669,1751021440755,-460.0,0.00019178,2]
[368088670,1751021440765,-778.85,0.00019178,2]
[368088671,1751021440774,-460.0,0.00019178,2]
[368088672,1751021440783,-713.95,0.00019178,2]
[368088673,1751021440792,-460.0,0.00019178,2]
[368088674,1751021440801,-460.0,0.00019178,2]
[368088675,1751021440811,-2488.0360747,0.00019178,2]
[368088676,1751021440820,-477.02767,0.00019178,2]
[368088677,1751021440830,-168.0,0.00019205,2]
[368088678,1751021440839,-591.0,0.00019226,2]
[368088679,1751021440849,-591.0,0.00019227,2]
[368088680,1751021440858,-591.0,0.00019227,2]
[368088681,1751021440867,-591.0,0.00019227,2]
[368088682,1751021440876,-591.0,0.00019227,2]
[368088683,1751021440885,-591.0,0.00019227,2]
[368088684,1751021440895,-591.0,0.00019227,2]
[368088685,1751021440905,-591.16,0.00019227,2]
[368088686,1751021440914,-168.0,0.00019256,2]
[368088687,1751021440923,-2433.97821687,0.0001927,2]
[368088688,1751021440932,-13932.06237176,0.0001927,2]
[368088689,1751021440942,-500.0,0.00019328,2]
[368088690,1751021440951,-500.0,0.00019328,2]
[368088691,1751021440961,-500.0,0.00019328,2]
[368088692,1751021440970,-500.0,0.00019328,2]
[368088693,1751021440979,-500.0,0.00019328,2]
[368088694,1751021440989,-500.0,0.00019328,2]
[368088695,1751021440998,-500.0,0.00019328,2]
[368088696,1751021441008,-500.0,0.00019328,2]
[368088697,1751021441017,-500.0,0.00019328,2]
[368088698,1751021441026,-204.21208598,0.00019328,2]
[368088699,1751021441036,-500.0,0.00019328,2]
[368088700,1751021441045,-500.0,0.00019328,2]
[368088701,1751021441055,-500.0,0.00019328,2]
[368088702,1751021441064,-500.0,0.00019328,2]
[368088703,1751021441074,-500.0,0.00019328,2]
[368088704,1751021441084,-500.0,0.00019328,2]
[368088705,1751021441093,-500.0,0.00019328,2]
[368088706,1751021441102,-500.0,0.00019328,2]
[368088707,1751021441112,-500.0,0.00019328,2]
[368088708,1751021441121,-500.0,0.00019328,2]
[368088709,1751021441131,-500.0,0.00019328,2]
[368088710,1751021441141,-500.0,0.00019328,2]
[368088711,1751021441150,-500.0,0.00019328,2]
[368088712,1751021441159,-500.0,0.00019328,2]
[368088713,1751021441168,-500.0,0.00019328,2]
[368088714,1751021441178,-277.57071142,0.00019328,2]
[368088715,1751021441187,-500.0,0.00019328,2]
[368088716,1751021441197,-500.0,0.00019328,2]
[368088717,1751021441205,-500.0,0.00019328,2]
[368088718,1751021441214,-500.0,0.00019328,2]
[368088719,1751021441223,-100000.0,0.00019329,2]
[368088720,1751021441233,-500.0,0.0001937,2]
[368088721,1751021441242,-199.22810316,0.0001937,2]
[368088722,1751021441253,-151.0,0.0001937,2]
[368088723,1751021441264,-198.0,0.0001937,2]
[368088724,1751021441273,-209.50242372,0.0001937,2]
[368088725,1751021441282,-151.0,0.0001937,2]
[368088726,1751021441292,-151.0,0.0001937,2]
[368088727,1751021441302,-10461.89899176,0.00019383,2]
[368088728,1751021441311,-500.0,0.00019397,2]
[368088729,1751021441320,-500.0,0.00019425,2]
[368088730,1751021441330,-460.0,0.00019452,2]
[368088731,1751021441339,-460.0,0.00019452,2]
[368088732,1751021441348,-460.0,0.00019452,2]
[368088733,1751021441357,-460.0,0.00019452,2]
[368088734,1751021441367,-460.0,0.00019452,2]
[368088735,1751021441375,-542.31,0.00019452,2]
[368088736,1751021441385,-460.0,0.00019452,2]
[368088737,1751021441394,-460.0,0.00019452,2]
[368088738,1751021441404,-586.51306352,0.00019452,2]
[368088739,1751021441413,-460.0,0.00019452,2]
[368088740,1751021441422,-460.0,0.00019452,2]
[368088741,1751021441432,-460.0,0.00019452,2]
[368088742,1751021441441,-460.0,0.00019452,2]
[368088743,1751021441450,-460.0,0.00019452,2]
[368088744,1751021441460,-460.0,0.00019452,2]
[368088745,1751021441469,-460.0,0.00019452,2]
[368088746,1751021441478,-460.0,0.00019452,2]
[368088747,1751021441487,-460.0,0.00019452,2]
[368088748,1751021441496,-409.98,0.00019452,2]
[368088749,1751021441506,-460.0,0.00019452,2]
[368088750,1751021441515,-460.0,0.00019452,2]
[368088751,1751021441524,-178.28551648,0.00019452,2]
[368088752,1751021441534,-918.35,0.00019452,2]
[368088753,1751021441543,-460.0,0.00019452,2]
[368088754,1751021441553,-460.0,0.00019452,2]
[368088755,1751021441562,-215.592634,0.00019452,2]
[368088756,1751021441570,-460.0,0.00019452,2]
[368088757,1751021441580,-833.27,0.00019452,2]
[368088758,1751021441589,-460.0,0.00019452,2]
[368088759,1751021441598,-460.0,0.00019452,2]
[368088760,1751021441608,-326.52597645,0.00019452,2]
[368088761,1751021441617,-460.0,0.00019452,2]
[368088762,1751021441626,-232.56138905,0.00019452,2]
[368088763,1751021441636,-460.0,0.00019452,2]
[368088764,1751021441645,-460.0,0.00019452,2]
[368088765,1751021441654,-460.0,0.00019452,2]
[368088766,1751021441663,-460.0,0.00019452,2]
[368088767,1751021441672,-1801.55,0.00019452,2]
[368088768,1751021441681,-460.0,0.00019452,2]
[368088769,1751021441691,-2389.41,0.00019452,2]
[368088770,1751021441700,-460.0,0.00019452,2]
[368088771,1751021441709,-460.0,0.00019452,2]
[368088772,1751021441718,-573.14,0.00019452,2]
[368088773,1751021441728,-390.0,0.00019452,2]
[368088774,1751021441737,-2876.33,0.00019452,2]
[368088775,1751021441747,-460.0,0.00019452,2]
[368088776,1751021441756,-460.0,0.00019452,2]
[368088777,1751021441765,-1082.4,0.00019452,2]
[368088778,1751021441775,-727.51,0.00019452,2]
[368088779,1751021441784,-460.0,0.00019452,2]
[368088780,1751021441794,-460.0,0.00019452,2]
[368088781,1751021441804,-899.43,0.00019452,2]
[368088782,1751021441813,-566.92,0.00019452,2]
[368088783,1751021441823,-460.0,0.00019452,2]
[368088784,1751021441833,-650.41,0.00019452,2]
[368088785,1751021441842,-2029.29,0.00019452,2]
[368088786,1751021441852,-1426.62,0.00019452,2]
[368088787,1751021441861,-659.85,0.00019452,2]
[368088788,1751021441871,-460.0,0.00019452,2]
[368088789,1751021441880,-1329.43,0.00019452,2]
[368088790,1751021441889,-460.0,0.00019452,2]
[368088791,1751021441899,-460.0,0.00019452,2]
[368088792,1751021441908,-460.0,0.00019452,2]
[368088793,1751021441917,-863.05,0.00019452,2]
[368088794,1751021441926,-839.87,0.00019452,2]
[368088795,1751021441936,-1276.34,0.00019452,2]
[368088796,1751021441946,-4767.51,0.00019452,2]
[368088797,1751021441955,-460.0,0.00019452,2]
[368088798,1751021441965,-529.46,0.00019452,2]
[368088799,1751021441974,-305.76,0.00019452,2]
[368088800,1751021441983,-2556.07,0.00019452,2]
[368088801,1751021441992,-490.37,0.00019452,2]
[368088802,1751021442002,-6190.04,0.00019452,2]
[368088803,1751021442012,-460.0,0.00019452,2]
[368088804,1751021442021,-578.65068982,0.00019452,2]
[368088805,1751021442031,-695.22,0.00019452,2]
[368088806,1751021442041,-769.42,0.00019452,2]
[368088807,1751021442051,-460.0,0.00019452,2]
[368088808,1751021442060,-3632.55,0.00019452,2]
[368088809,1751021442070,-460.0,0.00019452,2]
[368088810,1751021442079,-1058.86,0.00019452,2]
[368088811,1751021442088,-1684.88,0.00019452,2]
[368088812,1751021442098,-492.5,0.00019452,2]
[368088813,1751021442107,-460.0,0.00019452,2]
[368088814,1751021442117,-460.0,0.00019452,2]
[368088815,1751021442127,-3463.49,0.00019452,2]
[368088816,1751021442136,-460.0,0.00019452,2]
[368088817,1751021442145,-460.0,0.00019452,2]
[368088818,1751021442155,-460.0,0.00019452,2]
[368088819,1751021442164,-7548.22,0.00019452,2]
[368088820,1751021442174,-763.56,0.00019452,2]
[368088821,1751021442183,-4404.44,0.00019452,2]
[368088822,1751021442192,-460.0,0.00019452,2]
[368088823,1751021442202,-1750.76,0.00019452,2]
[368088824,1751021442212,-460.0,0.00019452,2]
[368088825,1751021442221,-457.08,0.00019452,2]
[368088826,1751021442230,-778.85,0.00019452,2]
[368088827,1751021442240,-460.0,0.00019452,2]
[368088828,1751021442249,-713.95,0.00019452,2]
[368088829,1751021442263,-460.0,0.00019452,2]
[368088830,1751021442273,-460.0,0.00019452,2]
[368088831,1751021442282,-500.0,0.00019452,2]
[368088832,1751021442291,-207.4,0.00019461,2]
[368088833,1751021442302,-666.0,0.00019461,2]
[368088834,1751021442311,-151.0,0.00019461,2]
[368088835,1751021442320,-151.0,0.00019461,2]
[368088836,1751021442332,-227.54651037,0.00019461,2]
[368088837,1751021442342,-5000.0,0.00019461,2]
[368088838,1751021442351,-151.0,0.00019461,2]
[368088839,1751021442361,-151.0,0.00019461,2]
[368088840,1751021442370,-500.0,0.00019461,2]
[368088841,1751021442379,-500.0,0.00019461,2]
[368088842,1751021442389,-500.0,0.00019461,2]
[368088843,1751021442398,-500.0,0.00019461,2]
[368088844,1751021442407,-151.0,0.00019461,2]
[368088845,1751021442417,-500.0,0.00019461,2]
[368088846,1751021442427,-288.89272804,0.00019461,2]
[368088847,1751021442436,-500.0,0.00019461,2]
[368088848,1751021442445,-500.0,0.00019461,2]
[368088849,1751021442455,-500.0,0.00019461,2]
[368088850,1751021442465,-500.0,0.00019461,2]
[368088851,1751021442474,-500.0,0.00019461,2]
[368088852,1751021442483,-500.0,0.00019461,2]
[368088853,1751021442492,-500.0,0.00019461,2]
[368088854,1751021442501,-500.0,0.00019461,2]
[368088855,1751021442511,-500.0,0.00019461,2]
[368088856,1751021442520,-500.0,0.00019461,2]
[368088857,1751021442530,-500.0,0.00019461,2]
[368088858,1751021442539,-500.0,0.00019461,2]
[368088859,1751021442549,-500.0,0.00019461,2]
[368088860,1751021442675,-500.0,0.00019461,2]
[368088861,1751021442684,-151.0,0.00019461,2]
[368088862,1751021442693,-500.0,0.00019461,2]
[368088863,1751021442703,-500.0,0.00019461,2]
[368088864,1751021442712,-500.0,0.00019461,2]
[368088865,1751021442721,-500.0,0.00019461,2]
[368088866,1751021442730,-500.0,0.00019461,2]
[368088867,1751021442739,-500.0,0.00019461,2]
[368088868,1751021442749,-500.0,0.00019461,2]
[368088869,1751021442758,-500.0,0.00019461,2]
[368088870,1751021442766,-500.0,0.00019461,2]
[368088871,1751021442776,-500.0,0.00019461,2]
[368088872,1751021442786,-25000.0,0.00019461,2]
[368088873,1751021442795,-500.0,0.00019461,2]
[368088874,1751021442805,-500.0,0.00019461,2]
[368088875,1751021442814,-500.0,0.00019461,2]
[368088876,1751021442824,-15458.45821952,0.00019461,2]
[368088877,1751021442833,-500.0,0.00019461,2]
[368088878,1751021442843,-500.0,0.00019461,2]
[368088879,1751021442852,-500.0,0.00019461,2]
[368088880,1751021442862,-500.0,0.00019461,2]
[368088881,1751021442871,-500.0,0.0001948,2]
[368088882,1751021442881,-500.0,0.00019507,2]
[368088883,1751021442892,-690.642,0.00019516,2]
[368088884,1751021442901,-168.0,0.00019523,2]
[368088885,1751021442911,-392.288962,0.00019534,2]
[368088886,1751021442920,-716.195754,0.00019571,2]
[368088887,1751021442930,-10133.34095,0.00019598,2]
[368088888,1751021442939,-5436.0,0.00019599,2]
[368088889,1751021442949,-10461.89899176,0.00019624,2]
[368088891,1751021442958,-742.6949969,0.00019626,2]
[368088892,1751021442968,-5888.0,0.00019632,2]
[368088893,1751021442977,-500.0,0.0001967,2]
[368088894,1751021442987,-500.0,0.0001967,2]
[368088895,1751021442996,-500.0,0.0001967,2]
[368088896,1751021443006,-770.17471178,0.00019681,2]
[368088898,1751021443015,-500.0,0.00019681,2]
[368088899,1751021443025,-224.00444455,0.00019681,2]
[368088900,1751021443035,-500.0,0.00019681,2]
[368088901,1751021443045,-500.0,0.00019684,2]
[368088902,1751021443054,-500.0,0.00019684,2]
[368088903,1751021443063,-500.0,0.00019684,2]
[368088904,1751021443073,-500.0,0.00019684,2]
[368088905,1751021443082,-500.0,0.00019684,2]
[368088906,1751021443092,-500.0,0.00019693,2]
[368088907,1751021443101,-500.0,0.00019693,2]
[368088908,1751021443111,-500.0,0.00019718,2]
[368088909,1751021443120,-176.42018452,0.0001972,2]
[368088910,1751021443129,-500.0,0.00019721,2]
[368088911,1751021443139,-400.0,0.00019726,2]
[368088912,1751021443148,-460.0,0.00019726,2]
[368088914,1751021443157,-151.0,0.00019726,2]
[368088915,1751021443167,-151.0,0.00019726,2]
[368088916,1751021443176,-442.33,0.00019726,2]
[368088917,1751021443186,-592.45743595,0.00019726,2]
[368088918,1751021443195,-475.24,0.00019726,2]
[368088919,1751021443205,-460.0,0.00019726,2]
[368088920,1751021443214,-460.0,0.00019726,2]
[368088921,1751021443223,-460.0,0.00019726,2]
[368088922,1751021443232,-460.0,0.00019726,2]
[368088923,1751021443242,-918.35,0.00019726,2]
[368088924,1751021443251,-460.0,0.00019726,2]
[368088925,1751021443265,-460.0,0.00019726,2]
[368088926,1751021443274,-460.0,0.00019726,2]
[368088927,1751021443284,-833.27,0.00019726,2]
[368088929,1751021443293,-460.0,0.00019726,2]
[368088930,1751021443303,-460.0,0.00019726,2]
[368088931,1751021443312,-460.0,0.00019726,2]
[368088932,1751021443321,-460.0,0.00019726,2]
[368088933,1751021443332,-460.0,0.00019726,2]
[368088934,1751021443341,-460.0,0.00019726,2]
[368088935,1751021443350,-1801.55,0.00019726,2]
[368088936,1751021443359,-460.0,0.00019726,2]
[368088937,1751021443368,-2389.41,0.00019726,2]
[368088938,1751021443377,-460.0,0.00019726,2]
[368088939,1751021443386,-258.82356254,0.00019726,2]
[368088940,1751021443395,-573.14,0.00019726,2]
[368088941,1751021443404,-2876.33,0.00019726,2]
[368088942,1751021443414,-460.0,0.00019726,2]
[368088943,1751021443423,-460.0,0.00019726,2]
[368088944,1751021443433,-1082.4,0.00019726,2]
[368088946,1751021443442,-727.51,0.00019726,2]
[368088947,1751021443451,-460.0,0.00019726,2]
[368088948,1751021443459,-899.43,0.00019726,2]
[368088949,1751021443468,-460.0,0.00019726,2]
[368088950,1751021443477,-460.0,0.00019726,2]
[368088951,1751021443487,-650.41,0.00019726,2]
[368088952,1751021443496,-2029.29,0.00019726,2]
[368088953,1751021443506,-1426.62,0.00019726,2]
[368088954,1751021443515,-659.85,0.00019726,2]
[368088955,1751021443524,-460.0,0.00019726,2]
[368088956,1751021443533,-1329.43,0.00019726,2]
[368088958,1751021443542,-460.0,0.00019726,2]
[368088960,1751021443551,-460.0,0.00019726,2]
[368088962,1751021443560,-460.0,0.00019726,2]
[368088963,1751021443570,-863.05,0.00019726,2]
[368088965,1751021443579,-839.87,0.00019726,2]
[368088967,1751021443589,-1276.34,0.00019726,2]
[368088969,1751021443598,-4767.51,0.00019726,2]
[368088971,1751021443607,-460.0,0.00019726,2]
[368088973,1751021443617,-529.46,0.00019726,2]
[368088974,1751021443626,-2556.07,0.00019726,2]
[368088976,1751021443636,-490.37,0.00019726,2]
[368088978,1751021443645,-6190.04,0.00019726,2]
[368088979,1751021443654,-460.0,0.00019726,2]
[368088980,1751021443663,-695.22,0.00019726,2]
[368088981,1751021443672,-769.42,0.00019726,2]
[368088982,1751021443681,-460.0,0.00019726,2]
[368088983,1751021443691,-3632.55,0.00019726,2]
[368088984,1751021443700,-460.0,0.00019726,2]
[368088985,1751021443709,-1058.86,0.00019726,2]
[368088986,1751021443719,-1684.88,0.00019726,2]
[368088987,1751021443728,-492.5,0.00019726,2]
[368088988,1751021443737,-348.70614134,0.00019726,2]
[368088989,1751021443748,-460.0,0.00019726,2]
[368088990,1751021443757,-3463.49,0.00019726,2]
[368088991,1751021443767,-460.0,0.00019726,2]
[368088992,1751021443776,-460.0,0.00019726,2]
[368088993,1751021443784,-460.0,0.00019726,2]
[368088994,1751021443794,-7548.22,0.00019726,2]
[368088995,1751021443803,-763.56,0.00019726,2]
[368088996,1751021443813,-4404.44,0.00019726,2]
[368088997,1751021443822,-460.0,0.00019726,2]
[368088998,1751021443832,-1750.76,0.00019726,2]
[368088999,1751021443842,-460.0,0.00019726,2]
[368089000,1751021443851,-778.85,0.00019726,2]
[368089001,1751021443861,-460.0,0.00019726,2]
[368089002,1751021443870,-713.95,0.00019726,2]
[368089003,1751021443879,-460.0,0.00019726,2]
[368089004,1751021443889,-460.0,0.00019726,2]
[368089005,1751021443898,-798.67117612,0.00019736,2]
[368089006,1751021443907,-828.22200964,0.00019791,2]
[368089007,1751021443917,-2433.97821683,0.00019828,2]
[368089008,1751021443926,-765.08520152,0.00019843,2]
[368089009,1751021443936,-858.86622399,0.00019846,2]
[368089010,1751021443945,-10461.89899176,0.00019866,2]
[368089011,1751021443954,-890.64427428,0.00019901,2]
[368089012,1751021443963,-923.59811243,0.00019956,2]
[368089013,1751021443973,-153.201281,0.0001999,2]
[368089014,1751021443983,-460.0,0.0002,2]
[368089015,1751021443992,-151.0,0.0002,2]
[368089016,1751021444002,-151.0,0.0002,2]
[368089017,1751021444012,-460.0,0.0002,2]
[368089018,1751021444022,-460.0,0.0002,2]
[368089019,1751021444032,-460.0,0.0002,2]
[368089020,1751021444041,-460.0,0.0002,2]
[368089021,1751021444051,-918.35,0.0002,2]
[368089022,1751021444060,-460.0,0.0002,2]
[368089023,1751021444069,-460.0,0.0002,2]
[368089024,1751021444078,-460.0,0.0002,2]
[368089025,1751021444087,-833.27,0.0002,2]
[368089026,1751021444096,-460.0,0.0002,2]
[368089027,1751021444106,-460.0,0.0002,2]
[368089028,1751021444116,-460.0,0.0002,2]
[368089029,1751021444125,-460.0,0.0002,2]
[368089030,1751021444134,-1801.55,0.0002,2]
[368089031,1751021444143,-460.0,0.0002,2]
[368089032,1751021444153,-2389.41,0.0002,2]
[368089033,1751021444163,-460.0,0.0002,2]
[368089034,1751021444172,-573.14,0.0002,2]
[368089035,1751021444181,-2876.33,0.0002,2]
[368089036,1751021444191,-460.0,0.0002,2]
[368089037,1751021444200,-1082.4,0.0002,2]
[368089038,1751021444209,-727.51,0.0002,2]
[368089039,1751021444218,-460.0,0.0002,2]
[368089040,1751021444227,-899.43,0.0002,2]
[368089041,1751021444236,-460.0,0.0002,2]
[368089042,1751021444245,-460.0,0.0002,2]
[368089043,1751021444257,-650.41,0.0002,2]
[368089044,1751021444266,-2029.29,0.0002,2]
[368089045,1751021444275,-1426.62,0.0002,2]
[368089046,1751021444284,-659.85,0.0002,2]
[368089047,1751021444294,-460.0,0.0002,2]
[368089048,1751021444304,-1329.43,0.0002,2]
[368089049,1751021444312,-413.07799668,0.0002,2]
[368089050,1751021444322,-460.0,0.0002,2]
[368089051,1751021444332,-471.16412517,0.0002,2]
[368089052,1751021444342,-863.05,0.0002,2]
[368089053,1751021444352,-839.87,0.0002,2]
[368089054,1751021444361,-1276.34,0.0002,2]
[368089055,1751021444370,-4767.51,0.0002,2]
[368089056,1751021444379,-460.0,0.0002,2]
[368089057,1751021444389,-529.46,0.0002,2]
[368089058,1751021444397,-2556.07,0.0002,2]
[368089059,1751021444407,-490.37,0.0002,2]
[368089060,1751021444416,-6190.04,0.0002,2]
[368089061,1751021444425,-460.0,0.0002,2]
[368089062,1751021444435,-695.22,0.0002,2]
[368089063,1751021444444,-769.42,0.0002,2]
[368089064,1751021444453,-460.0,0.0002,2]
[368089065,1751021444462,-3632.55,0.0002,2]